[Event "14th BPB Limburg Open 2022"]
[Site "Maastricht"]
[Date "2022.06.04"]
[Round "3.12"]
[White "Suvorov, Alexander"]
[Black "Arndt, Stefan"]
[Result "1-0"]
[ECO "D36"]
[WhiteElo "2365"]
[BlackElo "2138"]
[Annotator "TA"]
[PlyCount "39"]
[EventDate "2022.06.03"]
[EventType "swiss"]
[EventCountry "NED"]
[SourceTitle "playchess.com"]
[Source "ChessBase"]
[SourceQuality "1"]
[TimeControl "7200+15"]

{[%evp 22,25,4,0,4,1]} 1. d4 {[%emt 0:00:04]} d5 {[%emt 0:00:08]} 2. c4 {[%emt 0:00:09]} e6 {[%emt 0:00:06]} 3. Nc3 {[%emt 0:00:18]} Nf6 {[%emt 0:00:12]} 4. cxd5 {[%emt 0:00:25]} exd5 {[%emt 2:00:49]} 5. Bg5 {[%emt 0:00:23]} Be7 {[%emt 2:00:58]} 6. e3 {[%emt 0:00:25]} O-O {[%emt 0:00:13]} 7. Bd3 {[%emt 0:00:39]} Re8 {[%emt 0:00:23]} 8. Nge2 {[%emt 0:03:38]} c6 {[%emt 0:01:00]} 9. O-O {[%emt 0:01:41]} Nbd7 {[%emt 0:05:34][%cal Bb8d7,Bd7f8,Bf8e6][%mdl 32]} 10. Qc2 {[%emt 0:00:59]} Nf8 {[%emt 0:00:13]} 11. f3 {[%emt 1:54:19]} g6 {now scores much better than the old 11...Be6.} 12. Rad1 {[%emt 0:00:00]} Ne6 {[%emt 1:55:11] D36: Queen's Gambit Declined: Exchange Variation: Main line (5 Bg5 c6 6 Qc2).} 13. Bh4 {[%emt 0:00:00][%mdl 32768] [#] Not much happened in this game. Loss on time!?} {Predecessor:} b5 $146 14. Kh1 Bb7 15. Bf2 Rc8 16. Nf4 Nxf4 17. exf4 Bd6 18. Ne2 Nh5 19. f5 Qc7 20. g3 {½-½ (73) Nepomniachtchi,I (2784)-Radjabov,T (2765) chess24.com INT 2020} 1-0

[Event "14th BPB Limburg Open 2022"]
[Site "Maastricht"]
[Date "2022.06.04"]
[Round "3.13"]
[White "Marciano, Orry M"]
[Black "Freeke, Matthieu"]
[Result "0-1"]
[ECO "E04"]
[WhiteElo "1781"]
[BlackElo "2347"]
[Annotator "TA"]
[PlyCount "26"]
[EventDate "2022.06.03"]
[EventType "swiss"]
[EventCountry "NED"]
[SourceTitle "playchess.com"]
[Source "ChessBase"]
[SourceQuality "1"]
[TimeControl "7200+15"]

{[%evp 23,26,22,12,16,40]} 1. Nf3 {[%emt 0:00:09]} d5 {[%emt 0:00:43]} 2. g3 {[%emt 0:00:10]} c5 {[%emt 0:00:13]} 3. Bg2 {[%emt 0:00:20]} Nc6 {[%emt 0:00:05]} 4. d4 {[%emt 0:00:30]} e6 {[%emt 0:00:12]} 5. O-O {[%emt 2:00:21]} Nf6 {[%emt 0:00:08]} 6. c4 {[%emt 0:00:52]} dxc4 {[%emt 0:00:23]} 7. dxc5 {[%emt 0:03:03]} Qxd1 {[%emt 0:00:07]} 8. Rxd1 {[%emt 0:00:05]} Bxc5 {[%emt 0:00:05]} 9. Nbd2 {[%emt 0:00:35]} c3 {[%emt 0:00:08]} 10. bxc3 {[%emt 0:00:05]} O-O {[%emt 0:00:08]} 11. Nb3 {[%emt 0:00:22]} Be7 {[%emt 0:00:07]} 12. c4 {[%emt 0:08:31]} Bd7 {[%emt 0:00:19]} 13. Be3 {[%emt 0:00:41] [#] E04: Open Catalan: 5 Nf3.} b6 $146 {[%emt 0:11:55][%mdl 32768] A rather calm draw. Loss on time!?} ({Predecessor:} 13... Rfc8 14. Rac1 Be8 15. Nfd4 Ng4 16. Nxc6 Bxc6 17. Bxc6 Rxc6 18. Rd7 Ba3 19. Rc3 b6 20. Nd4 Rd6 21. Rxd6 Bxd6 {½-½ (58) Gormally,D (2479)-Paravyan,D (2629) Chess.com INT 2021}) 0-1

[Event "14th BPB Limburg Open 2022"]
[Site "Maastricht"]
[Date "2022.06.04"]
[Round "3.14"]
[White "Van Dael, Siem"]
[Black "Roorda, Thijs"]
[Result "1-0"]
[ECO "C13"]
[WhiteElo "2342"]
[BlackElo "2097"]
[Annotator "TA"]
[PlyCount "26"]
[EventDate "2022.06.03"]
[EventType "swiss"]
[EventCountry "NED"]
[SourceTitle "playchess.com"]
[Source "ChessBase"]
[SourceQuality "1"]
[TimeControl "7200+15"]

{[%evp 15,26,33,52,36,73,65,83,34,56,43,79,89,114]} 1. e4 {[%emt 0:00:03]} e6 {[%emt 0:00:07]} 2. d4 {[%emt 0:00:05]} d5 {[%emt 0:00:05]} 3. Nc3 {[%emt 0:00:05]} Nf6 {[%emt 0:00:27]} 4. Bg5 {[%emt 0:00:08]} dxe4 {[%emt 0:00:10]} 5. Nxe4 {[%emt 0:00:08]} Be7 {[%emt 0:00:06]} 6. Bxf6 {[%emt 0:00:10]} gxf6 {[%emt 0:00:20]} 7. Nf3 {[%emt 0:00:10]} f5 {[%emt 0:02:27]} 8. Nc3 {[%emt 0:00:07]} Bf6 {[%emt 0:02:25]} 9. Qd2 {[%emt 0:03:02] C13: French: Classical System: 4 Bg5 Be7, Alekhine-Chatard Attack.} c6 {[%emt 0:02:48]} 10. O-O-O {[%emt 1:58:47]} Nd7 {[%emt 0:02:24] [#]} 11. h3 $146 {[%emt 0:03:16] White is more active.} ({White should play} 11. Qh6 $16) ({Predecessor:} 11. Kb1 b6 12. Bd3 Bb7 13. Qh6 Qc7 14. Bxf5 exf5 15. Rhe1+ Kd8 16. Ne5 Bxe5 17. dxe5 {1-0 (30) Graf,F (2478)-Getz,N (2367) Fagernes 2015}) 11... h5 {[%emt 0:03:22]} 12. Kb1 {[%emt 0:05:56]} Nb6 {[%emt 0:01:10]} 13. Bd3 {[%emt 0:02:11]} Bg7 {[%emt 0:04:51] Weighted Error Value: White=0.11 (very precise) /Black=0.26 (precise)} 1-0

[Event "14th BPB Limburg Open 2022"]
[Site "Maastricht"]
[Date "2022.06.05"]
[Round "4.1"]
[White "Van Foreest, Lucas"]
[Black "Gurevich, Mikhail"]
[Result "1/2-1/2"]
[ECO "A84"]
[WhiteElo "2572"]
[BlackElo "2573"]
[Annotator "TA"]
[PlyCount "66"]
[EventDate "2022.06.03"]
[EventType "swiss"]
[EventCountry "NED"]
[SourceTitle "playchess.com"]
[Source "ChessBase"]
[SourceQuality "1"]
[TimeControl "7200+15"]

{[%evp 9,66,22,32,12,9,3,39,54,53,31,36,29,37,5,17,-26,-38,-30,17,16,19,-5,-7,-42,-42,-50,-50,-61,-44,-50,-49,-50,-50,-50,-50,-50,-42,-42,-42,-65,-42,-51,-42,-43,-42,-42,-42,-42,-42,-42,-42,-42,-42,-42,-42,-42,-42,-42,-42]} 1. d4 {[%emt 0:03:59]} f5 {[%emt 0:00:16]} 2. c4 {[%emt 0:00:29]} d6 {[%emt 0:00:13]} 3. Nf3 {[%emt 0:00:13]} Nf6 {[%emt 0:00:07]} 4. e3 {[%emt 0:00:29]} g6 {[%emt 0:01:05]} 5. Be2 {[%emt 0:00:06]} Bg7 {[%emt 0:00:11]} 6. b4 {[%emt 0:00:03] A84: Dutch Defence: 2 c4 Miscellaneous.} e5 {[%emt 0:05:07]} 7. dxe5 {[%emt 0:00:21] [#]} dxe5 $146 {[%emt 0:00:07]} ({Predecessor:} 7... Ng4 8. Nc3 Nc6 9. Bb2 Ngxe5 10. Nxe5 Nxe5 11. Qc2 Be6 12. Nb5 O-O 13. O-O c6 {½-½ (45) Jumabayev,R (2609)-Maghsoodloo,P (2673) Astana 2019}) 8. Qxd8+ {[%emt 0:00:28] White is slightly better.} (8. Nxe5 $2 Qxd1+ 9. Kxd1 Ng4 $19) 8... Kxd8 {[%emt 0:00:03]} 9. Bb2 {[%emt 0:00:16]} ({Avoid the trap} 9. Nxe5 $2 Nfd7 10. Bb2 Bxe5 $19) 9... e4 {[%emt 0:00:10]} 10. Nd4 {[%emt 0:00:21]} Na6 {[%emt 0:02:17]} 11. Nc2 {[%emt 0:13:56]} c5 {[%emt 0:04:15]} 12. b5 {[%emt 0:02:39]} Nc7 {[%emt 0:01:14]} 13. f3 {[%emt 0:00:31]} b6 {[%emt 0:09:27]} (13... Ke7 $142) 14. a4 {[%emt 0:09:43]} Bb7 {[%emt 0:02:01]} 15. f4 {[%emt 0:00:52]} a5 {[%emt 0:00:25]} 16. Nd2 {[%emt 0:04:18]} (16. bxa6 $5 Rxa6 17. g4 $11) 16... Ke7 {[%emt 0:01:55] Black is slightly better.} 17. h3 {[%emt 0:01:02]} h5 {[%emt 0:04:21]} 18. h4 {[%emt 0:00:12]} Rhd8 {[%emt 0:01:34]} 19. O-O-O {[%emt 0:00:20]} Bc8 {[%emt 0:06:26]} 20. Nb1 {[%emt 0:00:16]} Be6 {[%emt 0:00:08]} 21. Rxd8 {[%emt 0:00:15]} Rxd8 {[%emt 0:00:06]} 22. Rd1 {[%emt 0:00:18]} Rxd1+ {[%emt 0:01:36]} (22... Rc8 {is interesting.} 23. Nc3 Nfe8 24. g3 Bf6) 23. Kxd1 {[%emt 0:00:05]} Nce8 {[%emt 0:00:04]} 24. Nd2 {[%emt 0:00:15]} Nd6 {[%emt 0:00:21]} 25. Ke1 {[%emt 0:01:03]} Kf7 {[%emt 0:01:55]} 26. g3 {[%emt 0:00:20]} ({But not} 26. Be5 Bf8 $17) 26... Nd7 {[%emt 0:00:15]} 27. Bxg7 {[%emt 0:00:04]} Kxg7 {[%emt 0:00:05]} 28. Na3 {[%emt 0:00:19]} Kf7 {[%emt 0:00:44]} 29. Kf2 {[%emt 0:00:14]} Nf6 {[%emt 0:00:17]} 30. Kg2 {[%emt 0:01:00]} Ke7 {[%emt 0:00:07]} 31. Kg1 {[%emt 0:00:08]} Kd8 {[%emt 0:00:06]} 32. Kg2 {[%emt 0:00:12]} Kd7 {[%emt 0:00:07]} 33. Kg1 {[%emt 0:00:28]} Ke7 {[%emt 0:00:19] Weighted Error Value: White=0.08 (flawless) /Black=0.05 (flawless)} 1/2-1/2

[Event "14th BPB Limburg Open 2022"]
[Site "Maastricht"]
[Date "2022.06.05"]
[Round "4.2"]
[White "Lenaerts, Lennert"]
[Black "Warmerdam, Max"]
[Result "0-1"]
[ECO "B52"]
[WhiteElo "2362"]
[BlackElo "2614"]
[Annotator "TA"]
[PlyCount "78"]
[EventDate "2022.06.03"]
[EventType "swiss"]
[EventCountry "NED"]
[SourceTitle "playchess.com"]
[Source "ChessBase"]
[SourceQuality "1"]
[TimeControl "7200+15"]

{[%evp 16,78,32,18,31,13,18,-12,-10,-39,-41,-47,0,0,-5,0,0,0,0,0,0,0,0,0,0,-15,9,10,16,15,17,14,43,19,91,93,140,96,91,95,96,81,92,81,96,108,92,21,129,17,25,26,51,0,0,-67,0,-64,-53,-68,-67,-483,-483,-452,-447]} 1. e4 {[%emt 0:00:04]} c5 {[%emt 0:03:29]} 2. Nf3 {[%emt 0:00:28]} d6 {[%emt 0:00:43]} 3. Bb5+ {[%emt 0:00:28]} Bd7 {[%emt 0:00:53]} 4. Bxd7+ {[%emt 0:00:28]} Nxd7 {[%emt 0:00:06]} 5. O-O {[%emt 0:00:57]} e6 {[%emt 0:00:05]} 6. d4 {[%emt 0:00:51]} cxd4 {[%emt 0:01:05]} 7. Nxd4 {[%emt 0:01:12]} Ngf6 {[%emt 0:00:41]} 8. Qe2 {[%emt 0:00:40]} Be7 {[%emt 0:05:16]} 9. c4 {[%emt 0:00:11]} a6 {[%emt 0:01:13] B52: Sicilian: Moscow Variation with 3...Bd7.} 10. Nc3 {[%emt 0:01:18]} Rc8 {[%emt 0:00:40]} 11. a4 {[%emt 0:22:40]} Qa5 {[%emt 0:02:53] The position is equal.} 12. Nc2 {[%emt 0:15:51] [#]} Ne5 $146 {[%emt 0:05:41]} ({Predecessor:} 12... O-O 13. Bd2 Qc7 14. b3 Rfe8 15. Rfe1 Nc5 16. Rab1 b6 17. Nd4 Nfd7 18. Be3 Nf6 19. Bd2 Nfd7 {½-½ (19) Skripchenko,A (2498)-Van der Wiel,J (2501) Wijk aan Zee 2002}) 13. Ne3 $1 {[%emt 0:01:25]} O-O {[%emt 0:07:51]} (13... Qb6 $15) 14. Bd2 $11 {[%emt 0:11:49]} Qc5 {[%emt 0:00:27][%cal Re5c4]} 15. b3 {[%emt 0:00:33]} Bd8 {[%emt 0:01:31]} 16. Nc2 {[%emt 0:00:52]} Ba5 {[%emt 0:04:18]} 17. Rab1 {[%emt 0:02:51]} Rfe8 {[%emt 0:08:04]} 18. Rfe1 {[%emt 0:06:34]} Qc7 {[%emt 0:02:19]} 19. h3 {[%emt 0:08:11]} Nfd7 {[%emt 0:23:52]} 20. f4 {[%emt 0:10:10]} Nc6 {[%emt 0:05:37]} 21. Kh1 {[%emt 0:01:14]} Qb8 {[%emt 0:04:56]} 22. Qf3 {[%emt 0:02:18]} Nb4 {[%emt 0:03:05]} 23. Ne3 {[%emt 0:04:59]} Qc7 {[%emt 0:01:11]} 24. Red1 {[%emt 0:04:43]} Nc5 {[%emt 0:01:49]} (24... Nc6 $11) 25. f5 $16 {[%emt 0:01:41]} Qd8 {[%emt 0:06:44]} (25... Qe7 $142) 26. Ng4 {[%emt 0:01:50] And now f6 would win.} f6 {[%emt 0:12:04]} 27. fxe6 {[%emt 0:04:43]} Nxe6 {[%emt 0:00:41]} 28. Qg3 {[%emt 0:00:05][%cal Oe4e5]} Kh8 {[%emt 0:00:34]} 29. Nd5 {[%emt 0:02:15]} Nxd5 {[%emt 0:01:03]} 30. Bxa5 {[%emt 0:00:34]} ({Much worse is} 30. cxd5 $6 Ng5 31. Bxg5 fxg5 $11) (30. exd5 $6 Bxd2 31. dxe6 (31. Rxd2 Nc5 $11) 31... Bb4 $11) 30... Qxa5 {[%emt 0:00:02]} 31. Rxd5 {[%emt 0:00:59]} (31. exd5 $16 Nc5 32. Qxd6) 31... Nc5 {[%emt 0:02:06] [#]} (31... Qc7 $11 {keeps the balance.}) 32. Nf2 {[%emt 0:00:24]} ({White must play} 32. e5 $1 $16) 32... Qb4 {[%emt 0:05:26]} 33. Qxd6 {[%emt 0:00:30]} h6 {[%emt 0:03:14]} 34. Qf4 {[%emt 0:01:39]} (34. Kh2 $14) 34... Nxe4 $11 {[%emt 0:00:34] White must now prevent ...Nc3.} (34... Nxb3 $2 35. Rd3 $18) 35. Ng4 {[%emt 0:05:58]} ({Of course not} 35. Nxe4 Rxc4 36. bxc4 Qxb1+ 37. Kh2 Qxe4 38. Qxe4 Rxe4 $17) (35. Nd3 $11 Qc3 36. Kh2) 35... Rc5 {[%emt 0:03:53]} ({Better is} 35... Rxc4 $1 $15 36. Kh2 Nc3 37. Qxc4 Qxc4 38. bxc4 Nxb1) 36. Rxc5 {[%emt 0:04:40]} ({White should try} 36. Rd7 $11) 36... Qxc5 $15 {[%emt 0:00:02]} 37. Re1 {[%emt 0:00:57]} f5 {[%emt 0:00:49] ...g5 is the strong threat. Black is more active.} 38. Re3 $2 {[%emt 0:01:20][%mdl 8192]} ({White should play} 38. Ne3 $15) 38... g5 $19 {[%emt 0:00:24]} 39. Qf1 {[%emt 0:00:01] [#]} Qxe3 $3 {[%emt 0:00:03][%mdl 512] Weighted Error Value: White=0.39/Black=0.18 (very precise)} 0-1

[Event "14th BPB Limburg Open 2022"]
[Site "Maastricht"]
[Date "2022.06.05"]
[Round "4.3"]
[White "Donchenko, Alexander"]
[Black "Roebers, Eline"]
[Result "1-0"]
[ECO "D30"]
[WhiteElo "2599"]
[BlackElo "2369"]
[Annotator "TA"]
[PlyCount "47"]
[EventDate "2022.06.03"]
[EventType "swiss"]
[EventCountry "NED"]
[SourceTitle "playchess.com"]
[Source "ChessBase"]
[SourceQuality "1"]
[TimeControl "7200+15"]

{[%evp 13,47,23,21,-2,65,70,89,94,120,119,125,116,144,132,132,145,141,143,165,162,174,162,276,255,484,470,621,628,685,664,615,567,563,547,546,530]} 1. d4 {[%emt 0:00:03]} d5 {[%emt 0:00:12]} 2. c4 {[%emt 0:00:43]} c6 {[%emt 0:00:04]} 3. Nf3 {[%emt 0:00:35]} Nf6 {[%emt 0:00:04]} 4. e3 {[%emt 0:00:33]} e6 {[%emt 0:00:04]} 5. Bd3 {[%emt 0:02:39]} dxc4 {[%emt 0:05:55]} 6. Bxc4 {[%emt 0:00:15]} Nbd7 {[%emt 0:00:04]} 7. O-O {[%emt 0:01:20]} Bd6 {[%emt 0:01:20] The main line 7...Bd6 scores better than 7...b5.} 8. Nbd2 {[%emt 0:07:33] D30: Queen's Gambit Declined: Systems without Nc3.} b5 {[%emt 0:10:15]} ({Black should play} 8... O-O $11) 9. Bd3 $14 {[%emt 0:04:40] [#]} Qc7 $146 {[%emt 0:23:55]} ({Predecessor:} 9... Bb7 10. e4 e5 11. dxe5 Nxe5 12. Nxe5 Bxe5 13. Bc2 c5 14. Nb3 Nd7 15. f4 c4 {½-½ (15) Chiburdanidze,M (2500)-Korbut,E (2443) Kemer 2007}) 10. a4 {[%emt 0:07:03] White is better.} Bb7 {[%emt 0:10:20]} 11. axb5 {[%emt 0:07:33]} cxb5 {[%emt 0:00:09]} 12. e4 {[%emt 0:06:24] [#] Strongly threatening e5.} Be7 {[%emt 0:04:08]} 13. Bxb5 {[%emt 0:02:12]} O-O {[%emt 0:07:50]} 14. Qe2 {[%emt 0:01:02]} Rfd8 {[%emt 0:07:11]} 15. b3 {[%emt 0:04:06]} a6 {[%emt 0:05:47]} 16. Bd3 {[%emt 0:04:13]} ({Wrong is} 16. Bxa6 $2 Nb8 17. e5 (17. Bxb7 $2 Rxa1 18. e5 Ne8 $19) 17... Ne8 $19) 16... Nb8 {[%emt 0:03:36]} 17. Bb2 {[%emt 0:01:21]} Qb6 {[%emt 0:02:31]} (17... Nc6 $142 18. Rfc1 (18. Bxa6 Bxa6 19. Rxa6 Rxa6 $16) 18... Qb6) 18. Nc4 $18 {[%emt 0:01:30][%cal Bd2c4,Bc4e5,Be5c6][%mdl 32]} Qxb3 {[%emt 0:02:07] [#]} (18... Qc7 19. Na5 Nc6) 19. Rfb1 {[%emt 0:01:47] White is clearly winning.} Qb5 {[%emt 0:01:01]} 20. Ba3 {[%emt 0:06:37]} Qd7 {[%emt 0:00:04]} 21. Nce5 {[%emt 0:00:37]} Qc7 {[%emt 0:00:14]} 22. Rc1 {[%emt 0:00:06]} Nc6 {[%emt 0:00:05]} 23. Bxe7 {[%emt 0:00:13]} Qxe7 {[%emt 0:00:04]} 24. Nxc6 {[%emt 0:00:08] White took control after the opening.  Weighted Error Value: White=0.05 (flawless) /Black=0.51} 1-0

[Event "14th BPB Limburg Open 2022"]
[Site "Maastricht"]
[Date "2022.06.05"]
[Round "4.4"]
[White "Dardha, Daniel"]
[Black "Suvorov, Alexander"]
[Result "1/2-1/2"]
[ECO "E60"]
[WhiteElo "2561"]
[BlackElo "2365"]
[Annotator "TA"]
[PlyCount "72"]
[EventDate "2022.06.03"]
[EventType "swiss"]
[EventCountry "NED"]
[SourceTitle "playchess.com"]
[Source "ChessBase"]
[SourceQuality "1"]
[TimeControl "7200+15"]

{[%evp 9,72,0,13,26,33,33,44,58,54,52,44,46,58,58,66,66,134,41,42,0,29,28,23,22,22,7,25,0,0,0,0,0,5,0,0,0,0,0,0,0,0,0,0,0,0,0,0,0,0,0,0,0,0,0,0,0,0,0,0,0,0,0,0,0,0]} 1. d4 {[%emt 0:00:06]} Nf6 {[%emt 0:07:56]} 2. c4 {[%emt 0:00:14]} g6 {[%emt 0:00:35]} 3. h4 {[%emt 0:00:46]} Bg7 {[%emt 0:02:36]} 4. Nc3 {[%emt 0:00:55]} d6 {[%emt 0:01:07]} 5. e4 {[%emt 0:00:26]} Nc6 {[%emt 0:01:57]} 6. Nge2 {[%emt 0:01:46] E60: King's Indian: Unusual lines and Fianchetto Variation without Nc3.} O-O {[%emt 0:02:35]} 7. f3 {[%emt 0:00:44]} e5 {[%emt 0:02:54] [#] Threatens to win with ...exd4.} 8. d5 {[%emt 0:03:00] White is slightly better.} Nd4 {[%emt 0:01:58]} 9. Be3 $1 {[%emt 0:03:13]} ({Don't play} 9. Nxd4 exd4 10. Ne2 (10. Qxd4 $2 Nxe4 11. Qxe4 Re8 $19) 10... Re8 $11) 9... Nxe2 {[%emt 0:13:38] [#]} 10. Nxe2 $146 {[%emt 0:06:23]} ({Predecessor:} 10. Bxe2 Nh5 11. g4 Nf4 12. Rh2 f5 13. gxf5 gxf5 14. Qd2 fxe4 15. Nxe4 a6 16. O-O-O {1-0 (30) Pejovic,M-Perosevic,A (2188) Cetinje 2009}) 10... Nh5 {[%emt 0:14:17]} 11. g4 $1 {[%emt 0:03:02]} Nf4 {[%emt 0:03:59]} 12. Qd2 {[%emt 0:00:16]} f5 {[%emt 0:11:07]} (12... h5 $1 $14) 13. gxf5 {[%emt 0:01:55]} (13. exf5 $16 Nxe2 14. Bxe2 gxf5 15. O-O-O) 13... gxf5 $14 {[%emt 0:00:57]} 14. O-O-O {[%emt 0:02:11]} ({Much weaker is} 14. Nxf4 exf4 15. Bd4 (15. Bxf4 fxe4 16. fxe4 Bg4 $15) 15... fxe4 $11) 14... Nxe2+ {[%emt 0:13:31]} 15. Bxe2 {[%emt 0:04:25]} f4 {[%emt 0:03:14]} 16. Bf2 {[%emt 0:00:09]} b6 $1 {[%emt 0:01:11] Inhibits c5.} 17. Kb1 {[%emt 0:06:56]} a5 {[%emt 0:05:07]} 18. Bf1 {[%emt 0:03:20]} Bf6 {[%emt 0:02:06] The position is equal.} 19. Bh3 {[%emt 0:02:50]} Bxh3 {[%emt 0:02:10]} 20. Rxh3 {[%emt 0:00:21]} Kh8 {[%emt 0:01:44]} 21. Rg1 {[%emt 0:06:48]} Qd7 {[%emt 0:02:34]} 22. Rh2 {[%emt 0:01:29]} Rg8 {[%emt 0:00:51]} 23. Qd1 {[%emt 0:01:13]} Rg7 {[%emt 0:06:38]} 24. Rxg7 {[%emt 0:01:38]} Qxg7 {[%emt 0:00:14]} 25. Qf1 {[%emt 0:00:30]} Qd7 {[%emt 0:01:13]} 26. Rg2 {[%emt 0:03:02]} Rg8 {[%emt 0:02:11]} 27. Rxg8+ {[%emt 0:01:06]} Kxg8 $11 {[%emt 0:00:02][%mdl 4096] Endgame KQB-KQB} 28. Qg2+ {[%emt 0:02:44]} Kf7 {[%emt 0:01:22]} 29. h5 {[%emt 0:02:57]} Qa4 {[%emt 0:01:42][%cal Ra4d1] [#]} 30. b3 {[%emt 0:11:28]} Qb4 {[%emt 0:06:17]} 31. Qg4 {[%emt 0:02:50] White threatens Qe6+ and mate.} Qd2 {[%emt 0:00:44]} 32. Qe6+ {[%emt 0:01:09]} Kg7 {[%emt 0:00:06]} 33. h6+ {[%emt 0:00:08]} Kg6 {[%emt 0:00:47]} 34. Qf5+ {[%emt 0:00:14]} Kf7 {[%emt 0:01:53]} 35. Bh4 {[%emt 0:01:23] Dancing on a razor blade.} Qd1+ {[%emt 0:00:19]} 36. Kb2 {[%emt 0:00:06]} Qd2+ {[%emt 0:00:14] Weighted Error Value: White=0.06 (flawless) /Black=0.06 (flawless)} 1/2-1/2

[Event "14th BPB Limburg Open 2022"]
[Site "Maastricht"]
[Date "2022.06.05"]
[Round "4.5"]
[White "Ernst, Sipke"]
[Black "Van Dael, Siem"]
[Result "1/2-1/2"]
[ECO "E97"]
[WhiteElo "2547"]
[BlackElo "2342"]
[Annotator "TA"]
[PlyCount "65"]
[EventDate "2022.06.03"]
[EventType "swiss"]
[EventCountry "NED"]
[SourceTitle "playchess.com"]
[Source "ChessBase"]
[SourceQuality "1"]
[TimeControl "7200+15"]

{[%evp 20,65,58,22,30,22,14,12,7,5,44,41,37,43,93,92,116,55,78,84,120,116,187,177,182,14,35,34,42,42,101,26,61,0,0,0,0,0,0,0,0,0,0,0,0,0,0,0]} 1. d4 {[%emt 0:00:07]} Nf6 {[%emt 0:01:18]} 2. c4 {[%emt 0:00:12]} g6 {[%emt 0:00:05]} 3. Nc3 {[%emt 0:00:06]} Bg7 {[%emt 0:00:04]} 4. e4 {[%emt 0:00:16]} d6 {[%emt 0:00:12]} 5. Nf3 {[%emt 0:00:17]} O-O {[%emt 0:00:16]} 6. Be2 {[%emt 0:00:23]} e5 {[%emt 0:00:23]} 7. O-O {[%emt 0:00:08]} Nc6 {[%emt 0:00:04]} 8. d5 {[%emt 0:00:04]} Ne7 {[%emt 0:00:03]} 9. b4 {[%emt 0:00:05]} a5 {[%emt 0:00:03]} 10. bxa5 {[%emt 0:00:03]} Rxa5 {[%emt 0:03:45]} 11. a4 {[%emt 0:00:12]} Nh5 {[%emt 0:01:44] 11...Ne8 is a critical line. E97: King's Indian: Classical Main Line (6...e5 7 0-0 Nc6): 8 Be3 and 8 d5 Ne7, not 9 Ne1.} 12. g3 {[%emt 0:02:54]} f5 {[%emt 0:03:26]} 13. Ng5 {[%emt 0:03:10]} Nf6 {[%emt 0:07:58]} 14. f3 {[%emt 0:05:30][%cal Bf2f3,Bf3e4][%mdl 32]} h6 {[%emt 0:06:01]} 15. Ne6 {[%emt 0:00:12]} Bxe6 {[%emt 0:00:05]} 16. dxe6 {[%emt 0:00:06] [#]} fxe4 $146 {[%emt 0:00:31]} ({Black should play} 16... f4 $14) ({Predecessor:} 16... Nc6 17. Bd2 Ra8 18. Rb1 b6 19. Be3 f4 20. Bf2 Re8 21. Nd5 g5 22. c5 dxc5 {½-½ (35) Skok,B (2015)-Sajn,S (1942) Ljubljana 2012}) 17. fxe4 $16 {[%emt 0:01:18]} Qc8 {[%emt 0:00:26]} 18. Rb1 {[%emt 0:08:51]} ({Better is} 18. Bg4 $16) 18... b6 {[%emt 0:02:51]} 19. Bd2 {[%emt 0:10:18] White is more active.} Qxe6 {[%emt 0:06:58] [#]} 20. Nb5 {[%emt 0:12:22] Inhibits Ra7.} Rxb5 {[%emt 0:00:41]} 21. cxb5 $18 {[%emt 0:00:05]} Nxe4 {[%emt 0:00:29]} 22. Qc2 $2 {[%emt 0:03:59]} (22. Rxf8+ $18 Bxf8 23. Rc1) 22... Nxd2 {[%emt 0:02:40] Pair of Knights!} 23. Rxf8+ {[%emt 0:01:13]} Kxf8 {[%emt 0:11:31]} 24. Qxd2 {[%emt 0:00:30]} e4 {[%emt 0:01:31] [#]} (24... Nf5 $14) 25. Rf1+ {[%emt 0:08:04]} (25. a5 $1 $16 bxa5 26. Qxa5) 25... Ke8 {[%emt 0:02:10]} 26. a5 {[%emt 0:07:39]} (26. Kg2 $1 $14) 26... bxa5 $11 {[%emt 0:04:41] The position is equal.} 27. Qxa5 {[%emt 0:07:19]} Nf5 $1 {[%emt 0:09:18]} 28. Rf4 {[%emt 0:09:07]} ({Much weaker is} 28. Qxc7 Bd4+ 29. Rf2 (29. Kh1 $2 Nxg3+ 30. Kg2 Nxf1 $19) 29... d5 $15) 28... Bd4+ {[%emt 0:13:32]} 29. Kg2 {[%emt 0:00:35] Black must now prevent Qa8+.} d5 $1 {[%emt 0:03:23]} (29... Ne3+ $2 30. Kh1 Kd7 31. Qa8 $18) 30. Qa4 {[%emt 0:16:33] Threatens to win with b6+.} Bb6 {[%emt 0:04:08] ...g5 is the strong threat.} 31. Qa8+ {[%emt 0:02:01]} Kd7 {[%emt 0:03:55] And now ...g5 would win.} 32. g4 {[%emt 0:05:16] Dancing on a razor blade.} Qe5 {[%emt 0:12:33]} 33. gxf5 {[%emt 0:00:07] Weighted Error Value: White=0.30/Black=0.15 (very precise)} 1/2-1/2